[Event "European Corporate Championship 2022"]
[Site "Rotterdam"]
[Date "2022.06.19"]
[Round "8.2"]
[White "Jain Aum"]
[Black "Lambrechts, Koen"]
[Result "0-1"]
[ECO "D41"]
[WhiteElo "1591"]
[BlackElo "2349"]
[Annotator "TA"]
[PlyCount "113"]
[EventDate "2022.06.18"]
[EventType "team-tourn"]
[EventCountry "NED"]
[SourceTitle "playchess.com"]
[Source "ChessBase"]
[SourceQuality "1"]
[TimeControl "900+5"]

{[%evp 19,113,-31,25,0,-10,-22,-17,-17,-10,-14,-13,-8,-10,-15,-10,-16,-8,-14,-14,-7,0,-34,2,0,32,0,14,7,61,27,80,49,111,103,110,105,109,-66,-67,-76,-12,-15,-21,-94,-82,-79,-20,-27,-20,-22,-22,-22,-27,-28,-8,-29971,-29973,-29973,-29974,-29972,-29971,-29977,-29978,-29977,-29978,-29981,-29982,-29980,-29978,-29978,-29979,-29979,-29980,-29983,-29982,-29983,-29984,-29984,-29985,-29985,-29986,-29986,-29986,-29989,-29990,-29990,-29986,-29989,-29989,-29990,-29990,-29991,-29990,-29991,-29991,-29991]} 1. e4 {[%emt 0:00:03]} c6 {[%emt 0:00:01][%cal Bc7c6,Bc6d5][%mdl 32]} 2. d4 {[%emt 0:00:06]} d5 {[%emt 0:00:02]} 3. exd5 {[%emt 0:00:02]} cxd5 {[%emt 0:00:01]} 4. c4 {[%emt 0:00:02]} Nf6 {[%emt 0:00:01]} 5. Nc3 {[%emt 0:00:01]} Nc6 {[%emt 0:00:10]} 6. Nf3 {[%emt 0:00:02]} e6 {[%emt 0:00:58]} 7. a3 {[%emt 0:01:27]} Be7 {[%emt 0:00:05]} 8. cxd5 {[%emt 0:01:49]} Nxd5 {[%emt 0:00:05]} 9. Bc4 {[%emt 0:00:04]} O-O {[%emt 0:03:09]} 10. O-O {[%emt 0:01:02]} a6 {[%emt 0:00:38] [#]} ({Black should play} 10... Nxc3 $15 11. bxc3 b6) 11. Nxd5 $146 {[%emt 0:00:34] D41: Queen's Gambit Declined: Semi-Tarrasch with 5 cxd5.} ({Predecessor:} 11. Qe2 b5 12. Bb3 Bb7 13. Ne4 Nf6 14. Nc5 Nxd4 15. Nxd4 Bxc5 16. Nf3 Qb6 17. Bg5 Nd5 18. Bc2 Rac8 19. Qd3 g6 20. Ne5 Qc7 21. Ng4 f5 22. Nh6+ Kg7 23. Rac1 e5 24. Bb3 Nf4 25. Qc3 Ne2+ {0-1 (25) Gu,X (2219)-Araujo Filho,L (2089) Chess.com INT 2022}) 11... exd5 {[%emt 0:00:02]} 12. Bd3 {[%emt 0:01:07]} Bf6 {[%emt 0:00:26]} 13. Be3 {[%emt 0:00:45] The position is equal.} Bg4 {[%emt 0:00:34]} 14. h3 {[%emt 0:01:57]} Bh5 {[%emt 0:00:05]} 15. g4 {[%emt 0:00:33]} Bg6 {[%emt 0:00:02]} 16. Bxg6 {[%emt 0:00:23]} hxg6 {[%emt 0:00:02]} 17. Kg2 {[%emt 0:00:09]} Re8 {[%emt 0:02:09]} 18. Qd3 {[%emt 0:01:37]} Qd6 {[%emt 0:01:19]} 19. b4 {[%emt 0:00:18]} Rac8 {[%emt 0:00:55]} 20. Nd2 {[%emt 0:01:04]} g5 {[%emt 0:02:47]} 21. Rh1 {[%emt 0:00:17]} (21. Rac1 {looks sharper.} Bd8 22. Rh1 Ne7 23. Bxg5 Rxc1 24. Rxc1 Ng6 25. Rc8) 21... Qe7 {[%emt 0:00:29]} 22. Nb3 {[%emt 0:00:52]} Qe4+ {[%emt 0:00:24]} 23. Qxe4 {[%emt 0:00:02]} dxe4 {[%emt 0:00:11]} (23... Rxe4 $11 24. Rhc1 Rf8) 24. h4 {[%emt 0:01:19]} Red8 {[%emt 0:00:05]} (24... gxh4 $11 {remains equal.} 25. g5 Be7) 25. Rad1 {[%emt 0:00:03]} Rd5 {[%emt 0:00:24]} (25... gxh4 $14 26. g5 Be7) 26. hxg5 $16 {[%emt 0:00:30]} Bxg5 {[%emt 0:00:05]} 27. Rh5 {[%emt 0:00:14] aiming for Rdh1.} f6 {[%emt 0:00:07] [#]} 28. f3 $2 {[%emt 0:00:40]} ({White should try} 28. Nc5 $1 $16) 28... exf3+ $15 {[%emt 0:00:05]} 29. Kxf3 {[%emt 0:00:01]} Re8 {[%emt 0:00:32]} (29... Ne5+ $17 30. Ke4 {[#]} Nxg4 $1 31. Bxg5 Rxg5 32. Rxg5 Nf2+ 33. Kd5 Nxd1) 30. Bxg5 $11 {[%emt 0:00:08]} fxg5 {[%emt 0:00:03]} 31. Rh2 {[%emt 0:00:13]} (31. Rhh1 $11) 31... Ne5+ $17 {[%emt 0:00:33]} 32. Kg3 {[%emt 0:00:09]} Nc4 {[%emt 0:00:06]} (32... Ng6 $17 {White must now prevent ...Re3+.} 33. Kf2 Re4) 33. Rd3 $11 {[%emt 0:00:08]} Nxa3 {[%emt 0:00:19]} 34. Nc5 {[%emt 0:00:03]} Nb5 {[%emt 0:00:01]} 35. Nxb7 {[%emt 0:00:03]} Nxd4 {[%emt 0:00:43] ( -> ...Ne2+)} 36. Rhd2 {[%emt 0:00:06]} Ne2+ {[%emt 0:00:04]} 37. Rxe2 $2 {[%emt 0:00:03][%mdl 8192] Loses the game.} Rxd3+ {[%emt 0:00:02] Black mates.} 38. Kf2 {[%emt 0:00:02]} Rxe2+ {[%emt 0:00:04]} 39. Kxe2 {[%emt 0:00:01] KR-KN} Rd4 {[%emt 0:00:04]} 40. Nc5 {[%emt 0:00:02]} Rxb4 {[%emt 0:00:02]} 41. Nxa6 {[%emt 0:00:01]} Rxg4 {[%emt 0:00:02]} 42. Kf3 {[%emt 0:00:01]} Rc4 {[%emt 0:00:06]} 43. Nb8 {[%emt 0:00:02]} Kh7 {[%emt 0:00:15]} 44. Nd7 {[%emt 0:00:02]} Kh6 {[%emt 0:00:03]} 45. Ne5 {[%emt 0:00:03]} Ra4 {[%emt 0:00:05]} 46. Ng4+ {[%emt 0:00:15]} Kh5 {[%emt 0:00:02]} 47. Nf2 {[%emt 0:00:10]} Rf4+ {[%emt 0:00:07]} 48. Kg3 {[%emt 0:00:01] [#]} Rxf2 $1 {[%emt 0:00:02]} 49. Kxf2 {[%emt 0:00:01] KP-KP} Kh4 {[%emt 0:00:01][%cal Bh5h4,Bh4g4,Bg4f3,Bf3g3,Bg3f2][%mdl 32]} 50. Kg2 {[%emt 0:00:01]} Kg4 {[%emt 0:00:01]} 51. Kh2 {[%emt 0:00:03]} Kf3 {[%emt 0:00:03]} 52. Kg1 {[%emt 0:00:01]} Kg3 {[%emt 0:00:10]} 53. Kh1 {[%emt 0:00:01]} Kf2 {[%emt 0:00:04]} 54. Kh2 {[%emt 0:00:00]} g4 {[%emt 0:00:40][%cal Bg5g4,Bg4g3][%mdl 32]} 55. Kh1 {[%emt 0:00:02]} g6 {[%emt 0:00:00]} 56. Kh2 {[%emt 0:00:01]} g3+ {[%emt 0:00:00]} 57. Kh3 {[%emt 0:00:03] Weighted Error Value: White=0.33/Black=0.21 (precise)} 0-1

[Event "European Corporate Championship 2022"]
[Site "Rotterdam"]
[Date "2022.06.19"]
[Round "8.3"]
[White "Groenewold, Jan Joris"]
[Black "Maral Pranav"]
[Result "1-0"]
[ECO "E11"]
[WhiteElo "2134"]
[BlackElo "1329"]
[Annotator "NA RC"]
[PlyCount "51"]
[EventDate "2022.06.18"]
[EventType "team-tourn"]
[EventCountry "NED"]
[SourceTitle "playchess.com"]
[Source "ChessBase"]
[SourceQuality "1"]
[TimeControl "900+5"]

1. d4 {[%emt 0:00:02]} Nf6 {[%emt 0:00:02]} 2. Nf3 {[%emt 0:00:02]} e6 {[%emt 0:00:02]} 3. c4 {[%emt 0:00:03]} d5 {[%emt 0:00:01]} 4. g3 {[%emt 0:00:03]} Bb4+ {[%emt 0:00:22]} 5. Bd2 {[%emt 0:00:08]} a5 {[%emt 0:00:21]} 6. Bg2 {[%emt 0:00:15]} O-O {[%emt 0:00:17]} 7. O-O {[%emt 0:00:17]} Ra7 {[%emt 0:01:36]} 8. Qc2 {[%emt 0:00:32]} b6 {[%emt 0:00:52]} 9. Rd1 {[%emt 0:00:49]} dxc4 {[%emt 0:00:31]} 10. Bg5 {[%emt 0:01:02]} h6 {[%emt 0:01:55]} 11. Bf4 {[%emt 0:00:20]} Nd5 {[%emt 0:00:26]} 12. Bc1 {[%emt 0:01:14]} b5 {[%emt 0:00:56]} 13. e4 {[%emt 0:00:08]} Nf6 {[%emt 0:00:41]} 14. Nc3 {[%emt 0:00:18]} Bxc3 {[%emt 0:00:40]} 15. bxc3 {[%emt 0:00:03]} Qe7 {[%emt 0:00:47]} 16. Rb1 {[%emt 0:01:48]} Bd7 {[%emt 0:00:48]} 17. Ne5 {[%emt 0:00:18]} Be8 {[%emt 0:01:27]} 18. a4 {[%emt 0:00:56]} Rb7 {[%emt 0:01:24]} 19. Nxc4 {[%emt 0:00:14]} c6 {[%emt 0:01:03]} 20. axb5 {[%emt 0:01:41]} cxb5 {[%emt 0:01:02]} 21. Nxa5 {[%emt 0:00:16]} Ra7 {[%emt 0:00:02]} 22. Nb3 {[%emt 0:00:12]} Nc6 {[%emt 0:00:33]} 23. d5 {[%emt 0:00:48]} exd5 {[%emt 0:00:39]} 24. exd5 {[%emt 0:00:04]} Na5 {[%emt 0:00:05]} 25. Be3 {[%emt 0:00:27]} Ra6 {[%emt 0:00:10]} 26. Bc5 {[%emt 0:00:19]} 1-0

[Event "European Corporate Championship 2022"]
[Site "Rotterdam"]
[Date "2022.06.19"]
[Round "8.4"]
[White "Pedersen, Christopher R.N.H."]
[Black "Muller, Kenneth"]
[Result "0-1"]
[ECO "B73"]
[WhiteElo "2118"]
[BlackElo "1884"]
[Annotator "NA RC"]
[PlyCount "52"]
[EventDate "2022.06.18"]
[EventType "team-tourn"]
[EventCountry "NED"]
[SourceTitle "playchess.com"]
[Source "ChessBase"]
[SourceQuality "1"]
[TimeControl "900+5"]

1. e4 {[%emt 0:00:02]} c5 {[%emt 0:00:03]} 2. Nf3 {[%emt 0:00:02]} d6 {[%emt 0:00:01]} 3. d4 {[%emt 0:00:16]} cxd4 {[%emt 0:00:03]} 4. Nxd4 {[%emt 0:00:03]} Nf6 {[%emt 0:00:01]} 5. Nc3 {[%emt 0:00:07]} g6 {[%emt 0:00:02]} 6. Be3 {[%emt 0:00:03]} Bg7 {[%emt 0:00:02]} 7. Be2 {[%emt 0:00:07]} Nc6 {[%emt 0:00:15]} 8. O-O {[%emt 0:00:38]} O-O {[%emt 0:00:15]} 9. h3 {[%emt 0:00:15]} Bd7 {[%emt 0:00:13]} 10. a3 {[%emt 0:00:07]} Rc8 {[%emt 0:00:06]} 11. Nd5 {[%emt 0:00:20]} Nxe4 {[%emt 0:00:29]} 12. Nxc6 {[%emt 0:00:56]} bxc6 {[%emt 0:00:26]} 13. Nc3 {[%emt 0:00:55]} Nxc3 {[%emt 0:00:16]} 14. bxc3 {[%emt 0:00:02]} Bxc3 {[%emt 0:00:09]} 15. Bxa7 {[%emt 0:00:07]} Bxa1 {[%emt 0:01:02]} 16. Qxa1 {[%emt 0:00:06]} Qa5 {[%emt 0:00:05]} 17. Be3 {[%emt 0:00:11]} Qe5 {[%emt 0:01:43]} 18. Qc1 {[%emt 0:00:14]} Ra8 {[%emt 0:00:06]} 19. g4 {[%emt 0:01:43]} Ra4 {[%emt 0:00:32]} 20. f3 {[%emt 0:01:03]} Qg3+ {[%emt 0:00:22]} 21. Kh1 {[%emt 0:00:22]} Qxh3+ {[%emt 0:00:02]} 22. Kg1 {[%emt 0:00:01]} Rfa8 {[%emt 0:00:41]} 23. Rf2 {[%emt 0:00:42]} Rxa3 {[%emt 0:10:06]} 24. Bf1 {[%emt 0:00:08]} Qg3+ {[%emt 0:00:00]} 25. Kh1 {[%emt 0:01:13]} Bxg4 {[%emt 0:00:00]} 26. Bf4 {[%emt 0:00:28]} Qxf2 {[%emt 0:00:00]} 0-1

[Event "European Corporate Championship 2022"]
[Site "Rotterdam"]
[Date "2022.06.19"]
[Round "8.5"]
[White "Theulings, Paul-Peter"]
[Black "Barski, Radoslaw"]
[Result "0-1"]
[ECO "D37"]
[WhiteElo "2063"]
[BlackElo "2434"]
[Annotator "TA"]
[PlyCount "70"]
[EventDate "2022.06.18"]
[EventType "team-tourn"]
[EventCountry "NED"]
[SourceTitle "playchess.com"]
[Source "ChessBase"]
[SourceQuality "1"]
[TimeControl "900+5"]

{[%evp 14,69,44,45,42,35,77,20,13,18,16,20,22,27,31,14,45,14,42,0,0,0,0,-33,-47,-38,-25,-29,58,-106,-89,-104,-45,-105,-105,-105,-105,-121,-61,-70,-71,-170,-105,-180,-82,-480,-483,-468,-470,-471,-475,-475,-470,-452,-444,-368,-276,-29999]} 1. Nf3 {[%emt 0:00:03]} d5 {[%emt 0:00:06]} 2. d4 {[%emt 0:00:02]} e6 {[%emt 0:00:04]} 3. c4 {[%emt 0:00:02]} Nf6 {[%emt 0:00:09]} 4. Nc3 {[%emt 0:00:02]} a6 {[%emt 0:00:04]} 5. c5 {[%emt 0:00:05]} Be7 {[%emt 0:00:52]} 6. Bf4 {[%emt 0:00:04]} Nbd7 {[%emt 0:00:02]} 7. e3 {[%emt 0:00:06][%cal Be2e3,Be3f4,Bf4e5][%mdl 32]} O-O {[%emt 0:00:14]} 8. Bd3 {[%emt 0:00:05]} Nh5 {[%emt 0:04:43] D37: Queen's Gambit Declined: 5 Bf4.} 9. O-O {[%emt 0:00:27]} f5 {[%emt 0:00:58] [#]} 10. Ne5 $146 {[%emt 0:00:33]} (10. a3 $16) ({Predecessor:} 10. Be5 Nhf6 11. b4 Ne4 12. Rc1 Bf6 13. Bxf6 Qxf6 14. a4 c6 15. Nd2 e5 16. Nb3 Nxc3 17. Rxc3 {1-0 (24) Zambrano Linares,R (1968)-Molina Sumoza,J (2146) San Cristobal 2012}) 10... Nxf4 $11 {[%emt 0:01:42] The position is equal.} 11. exf4 {[%emt 0:00:02]} Nxe5 {[%emt 0:00:02]} 12. fxe5 {[%emt 0:00:07]} Bd7 {[%emt 0:00:01]} 13. b4 {[%emt 0:01:06]} Qe8 {[%emt 0:00:18]} 14. f4 {[%emt 0:01:03]} g5 {[%emt 0:00:28]} 15. fxg5 {[%emt 0:01:25]} (15. g4 $5 {[%cal Rg4f5]}) 15... Bxg5 {[%emt 0:00:01]} 16. Qf3 {[%emt 0:00:14] Against Be3+} Kh8 {[%emt 0:00:33]} 17. Ne2 {[%emt 0:00:23]} Rg8 {[%emt 0:00:17]} 18. Nf4 {[%emt 0:00:43]} Bxf4 {[%emt 0:00:09]} 19. Qxf4 {[%emt 0:00:04]} Rg4 {[%emt 0:00:13]} 20. Qf2 {[%emt 0:01:47]} Qg6 {[%emt 0:00:16]} (20... Bb5 $11 21. Bxb5 axb5) 21. Rae1 $2 {[%emt 0:00:24]} (21. Be2 $14 {stays ahead.}) 21... Bb5 {[%emt 0:01:09]} 22. Be2 {[%emt 0:02:09]} Rg5 {[%emt 0:00:01] Black is more active.} (22... Bxe2 $17 23. Rxe2 Rg8) 23. Qf3 {[%emt 0:00:50]} (23. Kh1 $15) 23... Rg8 $17 {[%emt 0:01:06][%cal Rg5g2]} 24. Rf2 {[%emt 0:00:03]} Rg4 $36 {[%emt 0:00:01][%mdl 2048] Black is on the roll.} 25. Rd1 {[%emt 0:01:26]} Qg5 {[%emt 0:00:02]} (25... Qh5 $17 26. Kh1 Qh4 27. Bxb5 axb5) 26. Bxb5 $15 {[%emt 0:01:53]} axb5 {[%emt 0:00:01]} 27. Qe2 {[%emt 0:00:14] [#]} (27. c6 $17) 27... c6 {[%emt 0:00:04]} (27... Qh5 $1 $19 {[%cal Og4g2] aiming for ...Rxg2+!} 28. Kh1 Qh4) 28. Qd2 {[%emt 0:00:17] [#]} (28. Rd3 $17 {is a better defense.}) 28... Qh4 {[%emt 0:01:01]} (28... Qh5 $1 $19 {[%cal Of5f4] Hoping for ...f4!} 29. Rc1 Rh4) 29. g3 {[%emt 0:00:35][%mdl 8192] White does not recover from this.} (29. Qc3 $17 {is a better chance.}) 29... f4 $1 $19 {[%emt 0:00:38]} 30. Rg2 {[%emt 0:01:05]} fxg3 {[%emt 0:00:22]} 31. Kh1 {[%emt 0:00:08]} gxh2 {[%emt 0:01:42]} 32. Rxh2 {[%emt 0:00:06]} Qg3 {[%emt 0:00:01][%cal Og3g1] ( -> ...Qg1+!)} 33. Qf2 {[%emt 0:00:05] Prevents Qg1+.} Qxf2 {[%emt 0:00:01]} 34. Rxf2 {[%emt 0:00:02]} Re4 {[%emt 0:00:06]} 35. Rf7 $2 {[%emt 0:00:08]} (35. a3 $19) 35... Rh4# {[%emt 0:00:09] Weighted Error Value: White=0.77/Black=0.27 (precise)} 0-1

[Event "European Corporate Championship 2022"]
[Site "Rotterdam"]
[Date "2022.06.19"]
[Round "8.6"]
[White "Celinski, Kamil"]
[Black "Malachi, Avraham"]
[Result "1-0"]
[ECO "C88"]
[WhiteElo "1907"]
[BlackElo "1997"]
[Annotator "NA RC"]
[PlyCount "81"]
[EventDate "2022.06.18"]
[EventType "team-tourn"]
[EventCountry "NED"]
[SourceTitle "playchess.com"]
[Source "ChessBase"]
[SourceQuality "1"]
[TimeControl "900+5"]

1. e4 {[%emt 0:00:05]} e5 {[%emt 0:00:01]} 2. Nf3 {[%emt 0:00:01]} Nc6 {[%emt 0:00:01]} 3. Bb5 {[%emt 0:00:29]} a6 {[%emt 0:00:02]} 4. Ba4 {[%emt 0:00:01]} Nf6 {[%emt 0:00:01]} 5. O-O {[%emt 0:00:02]} Be7 {[%emt 0:00:02]} 6. Re1 {[%emt 0:00:01]} b5 {[%emt 0:00:01]} 7. Bb3 {[%emt 0:00:01]} O-O {[%emt 0:00:02]} 8. h3 {[%emt 0:00:01]} Bb7 {[%emt 0:00:01]} 9. d3 {[%emt 0:00:02]} h6 {[%emt 0:00:23]} 10. c3 {[%emt 0:00:20]} Re8 {[%emt 0:00:08]} 11. Nbd2 {[%emt 0:00:02]} Bf8 {[%emt 0:00:10]} 12. Nf1 {[%emt 0:00:02]} Na5 {[%emt 0:00:09]} 13. Bc2 {[%emt 0:00:02]} c5 {[%emt 0:00:05]} 14. Ng3 {[%emt 0:00:22]} d5 {[%emt 0:00:25]} 15. Qe2 {[%emt 0:00:24]} c4 {[%emt 0:00:23]} 16. dxc4 {[%emt 0:00:33]} dxe4 {[%emt 0:00:49]} 17. Nxe4 {[%emt 0:00:11]} Nxe4 {[%emt 0:00:05]} 18. Bxe4 {[%emt 0:00:01]} Bxe4 {[%emt 0:00:02]} 19. Qxe4 {[%emt 0:00:05]} Nxc4 {[%emt 0:00:03]} 20. b3 {[%emt 0:00:47]} Nd6 {[%emt 0:00:07]} 21. Qd5 {[%emt 0:00:31]} e4 {[%emt 0:00:44]} 22. Nd4 {[%emt 0:00:32]} Qf6 {[%emt 0:00:36]} 23. Be3 {[%emt 0:01:33]} Rac8 {[%emt 0:00:25]} 24. Ne2 {[%emt 0:00:54]} Nf5 {[%emt 0:00:56]} 25. Bd4 {[%emt 0:00:58]} Nxd4 {[%emt 0:00:38]} 26. Qxd4 {[%emt 0:00:19]} Qxd4 {[%emt 0:00:28]} 27. cxd4 {[%emt 0:00:07]} f5 {[%emt 0:01:48]} 28. Nf4 {[%emt 0:00:53]} g5 {[%emt 0:01:22]} 29. Nd5 {[%emt 0:00:43]} Red8 {[%emt 0:00:13]} 30. Ne3 {[%emt 0:00:06]} Bb4 {[%emt 0:02:19]} 31. Re2 {[%emt 0:00:40]} Rf8 {[%emt 0:01:17]} 32. Nd5 {[%emt 0:00:38]} Bd6 {[%emt 0:00:16]} 33. g4 {[%emt 0:01:33]} Kg7 {[%emt 0:00:50]} 34. a4 {[%emt 0:00:25]} b4 {[%emt 0:00:16]} 35. Ne3 {[%emt 0:00:18]} fxg4 {[%emt 0:00:19]} 36. hxg4 {[%emt 0:00:01]} Bf4 {[%emt 0:00:34]} 37. Nf5+ {[%emt 0:00:02]} Kh7 {[%emt 0:00:08]} 38. Rxe4 {[%emt 0:00:15]} h5 {[%emt 0:00:37]} 39. Re7+ {[%emt 0:00:49]} Kg6 {[%emt 0:00:03]} 40. Re6+ {[%emt 0:00:04]} Rf6 {[%emt 0:00:07]} 41. Ne7+ {[%emt 0:00:02]} 1-0

[Event "European Corporate Championship 2022"]
[Site "Rotterdam"]
[Date "2022.06.19"]
[Round "8.7"]
[White "Burstein, Almog"]
[Black "Wisniewski, Jacek"]
[Result "1-0"]
[ECO "B94"]
[WhiteElo "1829"]
[BlackElo "1850"]
[Annotator "NA RC"]
[PlyCount "49"]
[EventDate "2022.06.18"]
[EventType "team-tourn"]
[EventCountry "NED"]
[SourceTitle "playchess.com"]
[Source "ChessBase"]
[SourceQuality "1"]
[TimeControl "900+5"]

1. e4 {[%emt 0:00:01]} c5 {[%emt 0:00:04]} 2. Nf3 {[%emt 0:00:01]} d6 {[%emt 0:00:03]} 3. d4 {[%emt 0:00:03]} cxd4 {[%emt 0:00:03]} 4. Nxd4 {[%emt 0:00:01]} Nf6 {[%emt 0:00:07]} 5. Nc3 {[%emt 0:00:02]} a6 {[%emt 0:00:03]} 6. Bg5 {[%emt 0:00:20]} Nbd7 {[%emt 0:00:04]} 7. Bd3 {[%emt 0:00:29]} b5 {[%emt 0:00:41]} 8. a3 {[%emt 0:00:25]} Bb7 {[%emt 0:00:18]} 9. O-O {[%emt 0:00:27]} e6 {[%emt 0:00:45]} 10. Kh1 {[%emt 0:00:52]} Be7 {[%emt 0:00:53]} 11. f4 {[%emt 0:00:43]} Qb6 {[%emt 0:01:43]} 12. Nb3 {[%emt 0:00:55]} O-O {[%emt 0:02:12]} 13. Qe2 {[%emt 0:00:35]} Qc7 {[%emt 0:00:38]} 14. Rae1 {[%emt 0:00:52]} Nc5 {[%emt 0:01:13]} 15. e5 {[%emt 0:02:06]} dxe5 {[%emt 0:01:30]} 16. fxe5 {[%emt 0:00:03]} Nd5 {[%emt 0:00:12]} 17. Nxd5 {[%emt 0:03:10]} Bxd5 {[%emt 0:00:16]} 18. Nxc5 {[%emt 0:00:02]} Bxg5 {[%emt 0:00:41]} 19. Ne4 {[%emt 0:00:04]} Qxe5 {[%emt 0:01:17]} 20. Qh5 {[%emt 0:02:30]} Bxe4 {[%emt 0:02:11]} 21. Rxe4 {[%emt 0:00:17]} Qd5 {[%emt 0:01:31]} 22. Rd4 {[%emt 0:00:53]} g6 {[%emt 0:00:23]} 23. Rxd5 {[%emt 0:00:02]} gxh5 {[%emt 0:00:04]} 24. Rxg5+ {[%emt 0:00:01]} Kh8 {[%emt 0:00:02]} 25. Rxh5 {[%emt 0:00:02]} 1-0

[Event "European Corporate Championship 2022"]
[Site "Rotterdam"]
[Date "2022.06.19"]
[Round "8.8"]
[White "Basiaga, Sebastian"]
[Black "Breger, Baruch"]
[Result "1-0"]
[ECO "B01"]
[WhiteElo "1749"]
[BlackElo "1739"]
[Annotator "NA RC"]
[PlyCount "59"]
[EventDate "2022.06.18"]
[EventType "team-tourn"]
[EventCountry "NED"]
[SourceTitle "playchess.com"]
[Source "ChessBase"]
[SourceQuality "1"]
[TimeControl "900+5"]

1. e4 {[%emt 0:00:02]} d5 {[%emt 0:00:09]} 2. exd5 {[%emt 0:00:05]} Nf6 {[%emt 0:00:03]} 3. d4 {[%emt 0:00:03]} Bg4 {[%emt 0:00:07]} 4. Be2 {[%emt 0:00:45]} Bxe2 {[%emt 0:00:17]} 5. Qxe2 {[%emt 0:00:45]} Qxd5 {[%emt 0:00:22]} 6. Nf3 {[%emt 0:00:06]} e6 {[%emt 0:01:47]} 7. O-O {[%emt 0:00:58]} Nc6 {[%emt 0:00:48]} 8. Be3 {[%emt 0:00:46]} O-O-O {[%emt 0:01:02]} 9. c4 {[%emt 0:00:46]} Qh5 {[%emt 0:00:26]} 10. Nc3 {[%emt 0:00:50]} Ng4 {[%emt 0:01:20]} 11. h3 {[%emt 0:00:29]} Nxe3 {[%emt 0:00:29]} 12. fxe3 {[%emt 0:00:04]} Be7 {[%emt 0:00:48]} 13. a3 {[%emt 0:00:38]} Rd7 {[%emt 0:01:32]} 14. b4 {[%emt 0:00:06]} Bf6 {[%emt 0:01:08]} 15. b5 {[%emt 0:01:08]} Ne7 {[%emt 0:00:04]} 16. Ne4 {[%emt 0:02:58]} Nf5 {[%emt 0:00:54]} 17. Rad1 {[%emt 0:01:58]} Qh6 {[%emt 0:00:55]} 18. Rfe1 {[%emt 0:00:06]} Bh4 {[%emt 0:00:37]} 19. Nxh4 {[%emt 0:00:11]} Qxh4 {[%emt 0:00:03]} 20. Qf3 {[%emt 0:00:15]} h5 {[%emt 0:00:48]} 21. Nc5 {[%emt 0:00:26]} Nd6 {[%emt 0:01:15]} 22. Nxd7 {[%emt 0:00:14]} Kxd7 {[%emt 0:00:03]} 23. c5 {[%emt 0:03:21]} Nf5 {[%emt 0:00:21]} 24. e4 {[%emt 0:00:00]} Nh6 {[%emt 0:00:46]} 25. d5 {[%emt 0:00:00]} e5 {[%emt 0:00:15]} 26. d6 {[%emt 0:00:00]} c6 {[%emt 0:00:07]} 27. bxc6+ {[%emt 0:00:00]} bxc6 {[%emt 0:00:02]} 28. Rb1 {[%emt 0:00:00]} g5 {[%emt 0:00:11]} 29. Qf6 {[%emt 0:00:00]} Ng4 {[%emt 0:00:51]} 30. Qe7+ {[%emt 0:00:00]} 1-0

[Event "European Corporate Championship 2022"]
[Site "Rotterdam"]
[Date "2022.06.19"]
[Round "8.9"]
[White "Nijboer, Friso"]
[Black "Schelvis, Richard"]
[Result "1-0"]
[ECO "B40"]
[WhiteElo "2464"]
[BlackElo "2157"]
[Annotator "RC"]
[PlyCount "55"]
[EventDate "2022.06.18"]
[EventType "team-tourn"]
[EventCountry "NED"]
[SourceTitle "playchess.com"]
[Source "ChessBase"]
[SourceQuality "1"]
[TimeControl "900+5"]

1. e4 {[%emt 0:00:03]} c5 {[%emt 0:00:03]} 2. Nf3 {[%emt 0:00:03]} e6 {[%emt 0:00:04]} 3. d4 {[%emt 0:00:04]} cxd4 {[%emt 0:00:02]} 4. Nxd4 {[%emt 0:00:02]} Nf6 {[%emt 0:00:02]} 5. Nc3 {[%emt 0:00:07]} Qb6 {[%emt 0:00:05]} 6. Nb3 {[%emt 0:05:38]} Bb4 {[%emt 0:00:06]} 7. Bd2 {[%emt 0:00:18]} d5 {[%emt 0:00:18]} 8. exd5 {[%emt 0:01:03]} exd5 {[%emt 0:00:03]} 9. a3 {[%emt 0:01:39]} Bd6 {[%emt 0:00:56]} 10. Be3 {[%emt 0:00:04]} Qd8 {[%emt 0:00:58]} 11. Be2 {[%emt 0:00:04]} O-O {[%emt 0:00:10]} 12. O-O {[%emt 0:00:02]} Nc6 {[%emt 0:00:23]} 13. Bf3 {[%emt 0:01:02]} Be6 {[%emt 0:00:25]} 14. g3 {[%emt 0:00:14]} Be5 {[%emt 0:01:16]} 15. Nd4 {[%emt 0:00:22]} Nxd4 {[%emt 0:00:37]} 16. Bxd4 {[%emt 0:00:01]} Bxd4 {[%emt 0:00:04]} 17. Qxd4 {[%emt 0:00:01]} Qd7 {[%emt 0:00:19]} 18. Rad1 {[%emt 0:00:28]} Rfd8 {[%emt 0:00:22]} 19. Ne2 {[%emt 0:00:27]} Rac8 {[%emt 0:00:18]} 20. c3 {[%emt 0:00:24]} b6 {[%emt 0:01:05]} 21. Nf4 {[%emt 0:01:01]} Rc4 {[%emt 0:02:39]} 22. Qe3 {[%emt 0:00:01]} Bg4 {[%emt 0:00:31]} 23. Nxd5 {[%emt 0:00:33]} Nxd5 {[%emt 0:01:39]} 24. Rxd5 {[%emt 0:00:01]} Qc8 {[%emt 0:00:47]} 25. Rxd8+ {[%emt 0:00:05]} Qxd8 {[%emt 0:00:01]} 26. Rd1 {[%emt 0:00:02]} Qc8 {[%emt 0:00:19]} 27. Bxg4 {[%emt 0:00:08]} Rxg4 {[%emt 0:00:20]} 28. Qe7 {[%emt 0:00:03]} 1-0